fUSD/lending_fUSD_20240625
["ID","MTS","AMOUNT","RATE_DAILY","PERIOD"]
[330377773,1719337955308,-2716.1,0.00020821,2]
[330377774,1719337955318,-571.25,0.00020821,2]
[330377775,1719337955327,-500.0,0.00020821,2]
[330377776,1719337955337,-9367.05,0.00020821,2]
[330377777,1719337955347,-500.0,0.00020821,2]
[330377778,1719337955356,-5116.79,0.00020821,2]
[330377779,1719337955366,-500.0,0.00020821,2]
[330377780,1719337955376,-500.0,0.00020821,2]
[330377781,1719337955386,-6152.62,0.00020821,2]
[330377782,1719337955395,-500.0,0.00020821,2]
[330377783,1719337955405,-658.03,0.00020821,2]
[330377784,1719337955415,-20168.94,0.00020821,2]
[330377785,1719337955425,-1026.1,0.00020821,2]
[330377786,1719337955435,-1760.02,0.00020821,2]
[330377787,1719337955444,-1640.24,0.00020821,2]
[330377788,1719337955455,-500.0,0.00020821,2]
[330377789,1719337955464,-500.0,0.00020821,2]
[330377790,1719337955474,-500.0,0.00020821,2]
[330377791,1719337955484,-19689.46,0.00020821,2]
[330377792,1719337955493,-1038.72,0.00020821,2]
[330377793,1719337955503,-3388.45,0.00020821,2]
[330377794,1719337955512,-500.0,0.00020821,2]
[330377795,1719337955522,-487.43947106,0.00020821,2]
[330377796,1719337955531,-500.0,0.00020821,2]
[330377797,1719337955541,-500.0,0.00020821,2]
[330377798,1719337955551,-709.2,0.00020821,2]
[330377799,1719337955561,-4133.33,0.00020821,2]
[330377800,1719337955571,-1249.47,0.00020821,2]
[330377801,1719337955580,-2499.52,0.00020821,2]
[330377802,1719337955589,-991.31,0.00020821,2]
[330377803,1719337955599,-2511.23,0.00020821,2]
[330377804,1719337955608,-500.0,0.00020821,2]
[330377805,1719337955618,-16464.04,0.00020821,2]
[330377806,1719337955627,-1636.71,0.00020821,2]
[330377807,1719337955636,-500.0,0.00020821,2]
[330377808,1719337955645,-500.0,0.00020821,2]
[330377809,1719337955654,-1279.93,0.00020821,2]
[330377810,1719337955664,-4519.25,0.00020821,2]
[330377811,1719337955674,-711.6,0.00020821,2]
[330377812,1719337955684,-635.3,0.00020821,2]
[330377813,1719337955694,-813.02,0.00020821,2]
[330377814,1719337955704,-867.36,0.00020821,2]
[330377815,1719337955713,-984.69,0.00020821,2]
[330377816,1719337955723,-2863.52,0.00020821,2]
[330377817,1719337955733,-1078.44,0.00020821,2]
[330377818,1719337955742,-579.91,0.00020821,2]
[330377819,1719337955752,-449.60080593,0.00020821,2]
[330377820,1719337955761,-1635.81,0.00020821,2]
[330377821,1719337955771,-894.63,0.00020821,2]
[330377822,1719337955780,-500.0,0.00020821,2]
[330377823,1719337955790,-511.61,0.00020821,2]
[330377824,1719337955800,-529.3127545,0.00020821,2]
[330377825,1719337955809,-6876.69,0.00020821,2]
[330377826,1719337955819,-724.58,0.00020821,2]
[330377827,1719337955829,-770.48,0.00020821,2]
[330377828,1719337955838,-500.0,0.00020821,2]
[330377829,1719337955848,-500.0,0.00020821,2]
[330377830,1719337955858,-1778.16,0.00020821,2]
[330377831,1719337955867,-2214.33,0.00020821,2]
[330377832,1719337955876,-627.16,0.00020821,2]
[330377833,1719337955886,-12811.41,0.00020821,2]
[330377834,1719337955895,-500.0,0.00020821,2]
[330377835,1719337955905,-1194.74,0.00020821,2]
[330377836,1719337955914,-952.48,0.00020821,2]
[330377837,1719337955923,-250.0,0.00020821,2]
[330377838,1719337955933,-646.01,0.00020821,2]
[330377839,1719337955942,-6829.1,0.00020821,2]
[330377840,1719337955952,-500.0,0.00020821,2]
[330377841,1719337955962,-533.6,0.00020821,2]
[330377842,1719337955971,-8218.06,0.00020821,2]
[330377843,1719337955980,-1023.86,0.00020821,2]
[330377844,1719337955989,-500.0,0.00020821,2]
[330377845,1719337955999,-2323.75,0.00020821,2]
[330377846,1719337956008,-500.0,0.00020821,2]
[330377847,1719337956017,-1807.94,0.00020821,2]
[330377848,1719337956026,-500.0,0.00020821,2]
[330377849,1719337956036,-539.11,0.00020821,2]
[330377850,1719337956046,-601.49905436,0.00020821,2]
[330377851,1719337956055,-11065.02,0.00020821,2]
[330377852,1719337956064,-1104.07,0.00020821,2]
[330377853,1719337956074,-500.0,0.00020821,2]
[330377854,1719337956084,-663.89,0.00020821,2]
[330377855,1719337956094,-600.35,0.00020821,2]
[330377856,1719337956104,-501.0,0.00020821,2]
[330377857,1719337956114,-515.57985395,0.00020821,2]
[330377858,1719337956123,-1481.84,0.00020821,2]
[330377859,1719337956133,-522.35,0.00020821,2]
[330377860,1719337956142,-661.17,0.00020821,2]
[330377861,1719337956151,-500.0,0.00020821,2]
[330377862,1719337956162,-5478.65,0.00020821,2]
[330377863,1719337956176,-1680.53,0.00020821,2]
[330377864,1719337956187,-3657.63,0.00020821,2]
[330377865,1719337956197,-886.73,0.00020821,2]
[330377866,1719337956207,-169.71992845,0.00020821,2]
[330377867,1719337956219,-500.0,0.00020821,2]
[330377868,1719337956228,-2543.7,0.00020821,2]
[330377869,1719337956238,-10088.1,0.00020821,2]
[330377870,1719337956249,-2456.25,0.00020821,2]
[330377871,1719337956258,-1656.09,0.00020821,2]
[330377872,1719337956268,-500.0,0.00020821,2]
[330377873,1719337956278,-2328.62,0.00020821,2]
[330377874,1719337956288,-3868.22,0.00020821,2]
[330377875,1719337956298,-1796.89,0.00020821,2]
[330377876,1719337956308,-500.0,0.00020821,2]
[330377877,1719337956318,-479.90729929,0.00020821,2]
[330377878,1719337956328,-4014.66,0.00020821,2]
[330377879,1719337956338,-500.0,0.00020821,2]
[330377880,1719337956347,-7129.8,0.00020821,2]
[330377881,1719337956356,-500.0,0.00020821,2]
[330377882,1719337956367,-500.0,0.00020821,2]
[330377883,1719337956378,-500.0,0.00020821,2]
[330377884,1719337956389,-3567.64,0.00020821,2]
[330377885,1719337956405,-914.75,0.00020821,2]
[330377886,1719337956414,-1821.82,0.00020821,2]
[330377887,1719337956423,-2063.73,0.00020821,2]
[330377888,1719337956432,-1475.68,0.00020821,2]
[330377889,1719337956445,-500.0,0.00020821,2]
[330377890,1719337956456,-546.57,0.00020821,2]
[330377891,1719337956466,-500.0,0.00020821,2]
[330377892,1719337956475,-750.23,0.00020821,2]
[330377893,1719337956485,-559.73,0.00020821,2]
[330377894,1719337956495,-500.0,0.00020821,2]
[330377895,1719337956507,-500.0,0.00020821,2]
[330377896,1719337956516,-3434.69,0.00020821,2]
[330377897,1719337956527,-500.0,0.00020821,2]
[330377898,1719337956536,-14507.85,0.00020821,2]
[330377899,1719337956547,-500.0,0.00020821,2]
[330377900,1719337956557,-2198.32,0.00020821,2]
[330377901,1719337956567,-500.0,0.00020821,2]
[330377902,1719337956576,-500.0,0.00020821,2]
[330377903,1719337956586,-1011.11,0.00020821,2]
[330377904,1719337956596,-1316.74,0.00020821,2]
[330377905,1719337956607,-500.0,0.00020821,2]
[330377906,1719337956616,-38249.94,0.00020821,2]
[330377907,1719337956626,-887.9,0.00020821,2]
[330377908,1719337956636,-500.0,0.00020821,2]
[330377909,1719337956645,-697.9,0.00020821,2]
[330377910,1719337956655,-500.0,0.00020821,2]
[330377911,1719337956664,-500.0,0.00020821,2]
[330377912,1719337956674,-1003.68,0.00020821,2]
[330377913,1719337956683,-500.0,0.00020821,2]
[330377914,1719337956692,-500.0,0.00020821,2]
[330377915,1719337956702,-27014.67,0.00020821,2]
[330377916,1719337956711,-500.0,0.00020821,2]
[330377917,1719337956721,-1975.91,0.00020821,2]
[330377918,1719337956730,-1550.6,0.00020821,2]
[330377919,1719337956739,-4800.32,0.00020821,2]
[330377920,1719337956749,-500.0,0.00020821,2]
[330377921,1719337956758,-500.0,0.00020821,2]
[330377922,1719337956768,-726.31,0.00020821,2]
[330377923,1719337956778,-500.0,0.00020821,2]
[330377924,1719337956788,-1578.23,0.00020821,2]
[330377925,1719337956797,-1230.61,0.00020821,2]
[330377926,1719337956807,-500.0,0.00020821,2]
[330377927,1719337956817,-500.0,0.00020821,2]
[330377928,1719337956827,-500.0,0.00020821,2]
[330377929,1719337956836,-3087.64,0.00020821,2]
[330377930,1719337956846,-500.0,0.00020821,2]
[330377931,1719337956855,-1806.83,0.00020821,2]
[330377932,1719337956865,-3280.0,0.00020821,2]
[330377933,1719337956874,-500.0,0.00020821,2]
[330377934,1719337956884,-679.84,0.00020821,2]
[330377935,1719337956893,-1791.93,0.00020821,2]
[330377936,1719337956904,-500.0,0.00020821,2]
[330377937,1719337956914,-709.69,0.00020821,2]
[330377938,1719337957166,-874.77,0.00020821,2]
[330377939,1719337957179,-500.0,0.00020821,2]
[330377940,1719337957189,-858.99,0.00020821,2]
[330377941,1719337957199,-3522.11,0.00020821,2]
[330377942,1719337957210,-500.0,0.00020821,2]
[330377943,1719337957220,-1076.73,0.00020821,2]
[330377944,1719337957230,-17618.37,0.00020821,2]
[330377945,1719337957239,-587.49,0.00020821,2]
[330377946,1719337957251,-500.0,0.00020821,2]
[330377947,1719337957260,-500.0,0.00020821,2]
[330377948,1719337957270,-500.0,0.00020821,2]
[330377949,1719337957280,-2768.81,0.00020821,2]
[330377950,1719337957290,-9360.45,0.00020821,2]
[330377951,1719337957300,-1531.05,0.00020821,2]
[330377952,1719337957310,-500.0,0.00020821,2]
[330377953,1719337957320,-3587.57,0.00020821,2]
[330377954,1719337957330,-588.37,0.00020821,2]
[330377955,1719337957340,-654.5,0.00020821,2]
[330377956,1719337957350,-1310.42,0.00020821,2]
[330377957,1719337957359,-500.0,0.00020821,2]
[330377958,1719337957369,-2960.82,0.00020821,2]
[330377959,1719337957379,-1063.93,0.00020821,2]
[330377960,1719337957389,-500.0,0.00020821,2]
[330377961,1719337957404,-2408.83,0.00020821,2]
[330377962,1719337957414,-3984.57,0.00020821,2]
[330377963,1719337957424,-4130.12,0.00020821,2]
[330377964,1719337957433,-799.95,0.00020821,2]
[330377965,1719337957443,-1748.04,0.00020821,2]
[330377966,1719337957452,-10614.48,0.00020821,2]
[330377967,1719337957463,-500.0,0.00020821,2]
[330377968,1719337957473,-792.5,0.00020821,2]
[330377969,1719337957482,-550.72,0.00020821,2]
[330377970,1719337957492,-1468.33,0.00020821,2]
[330377971,1719337957501,-3298.16,0.00020821,2]
[330377972,1719337957511,-5401.34,0.00020821,2]
[330377973,1719337957520,-500.0,0.00020821,2]
[330377974,1719337957529,-497.05229019,0.00020821,2]
[330377975,1719337957539,-1075.13,0.00020821,2]
[330377976,1719337957549,-1746.97,0.00020821,2]
[330377977,1719337957558,-12850.46,0.00020821,2]
[330377978,1719337957567,-500.0,0.00020821,2]
[330377979,1719337957577,-3728.91,0.00020821,2]
[330377980,1719337957586,-1619.57,0.00020821,2]
[330377981,1719337957595,-533.36,0.00020821,2]
[330377982,1719337957604,-6211.69,0.00020821,2]
[330377983,1719337957614,-500.0,0.00020821,2]
[330377984,1719337957623,-765.33,0.00020821,2]
[330377985,1719337957632,-687.55,0.00020821,2]
[330377986,1719337957646,-1253.15,0.00020821,2]
[330377987,1719337957656,-500.0,0.00020821,2]
[330377988,1719337957666,-3214.85,0.00020821,2]
[330377989,1719337957675,-500.0,0.00020821,2]
[330377990,1719337957685,-500.0,0.00020821,2]
[330377991,1719337957694,-1196.83,0.00020821,2]
[330377992,1719337957704,-1014.47,0.00020821,2]
[330377993,1719337957714,-1365.93,0.00020821,2]
[330377994,1719337957724,-2068.49,0.00020821,2]
[330377995,1719337957733,-3277.71,0.00020821,2]
[330377996,1719337957743,-2994.62,0.00020821,2]
[330377997,1719337957752,-4078.1,0.00020821,2]
[330377998,1719337957762,-500.0,0.00020821,2]
[330377999,1719337957772,-500.0,0.00020821,2]
[330378000,1719337957782,-4726.64,0.00020821,2]
[330378001,1719337957791,-5216.67,0.00020821,2]
[330378002,1719337957801,-500.0,0.00020821,2]
[330378003,1719337957811,-1482.28,0.00020821,2]
[330378004,1719337957821,-790.4,0.00020821,2]
[330378005,1719337957830,-477.09004482,0.00020821,2]
[330378006,1719337957840,-1436.06,0.00020821,2]
[330378007,1719337957849,-686.96,0.00020821,2]
[330378008,1719337957859,-500.0,0.00020821,2]
[330378009,1719337957869,-1827.73,0.00020821,2]
[330378010,1719337957878,-500.0,0.00020821,2]
[330378011,1719337957889,-500.0,0.00020821,2]
[330378012,1719337957905,-500.0,0.00020821,2]
[330378013,1719337957915,-3074.5,0.00020821,2]
[330378014,1719337957925,-500.0,0.00020821,2]
[330378015,1719337957935,-150.0,0.00020846,2]
[330378016,1719337957946,-150.0,0.00020846,2]
[330378017,1719337957956,-150.0,0.00020846,2]
[330378018,1719337957966,-150.0,0.00020846,2]
[330378019,1719337957976,-104416.974425,0.000209,2]
[330378020,1719337957986,-354.443591,0.00020989,2]
[330378021,1719337957996,-2934.42258178,0.00021,2]
[330378022,1719337958006,-1250.0,0.00021,2]
[330378023,1719337958016,-12053.56851484,0.00021003,2]
[330378024,1719337958026,-500.0,0.00021095,2]
[330378025,1719337958036,-299.18612631,0.00021095,2]
[330378026,1719337958044,-500.0,0.00021095,2]
[330378027,1719337958054,-500.0,0.00021095,2]
[330378028,1719337958064,-500.0,0.00021095,2]
[330378029,1719337958073,-500.0,0.00021095,2]
[330378030,1719337958083,-2500.0,0.00021095,3]
[330378031,1719337958092,-500.0,0.00021095,2]
[330378032,1719337958101,-500.0,0.00021095,2]
[330378033,1719337958111,-500.0,0.00021095,2]
[330378034,1719337958120,-500.0,0.00021095,2]
[330378035,1719337958130,-502.92919112,0.00021095,2]
[330378036,1719337958139,-471.39820488,0.00021095,2]
[330378037,1719337958156,-500.0,0.00021095,2]
[330378038,1719337958166,-1041.25,0.00021095,2]
[330378039,1719337958179,-251.976782,0.00021095,2]
[330378040,1719337958188,-746.42,0.00021095,2]
[330378041,1719337958198,-867.14,0.00021095,2]
[330378042,1719337958208,-500.0,0.00021095,2]
[330378043,1719337958218,-500.0,0.00021095,2]
[330378044,1719337958227,-751.61,0.00021095,2]
[330378045,1719337958236,-500.0,0.00021095,2]
[330378046,1719337958249,-1356.99,0.00021095,2]
[330378047,1719337958259,-1175.6,0.00021095,2]
[330378048,1719337958268,-500.0,0.00021095,2]
[330378049,1719337958278,-1372.16,0.00021095,2]
[330378050,1719337958287,-2625.16,0.00021095,2]
[330378051,1719337958297,-500.0,0.00021095,2]
[330378052,1719337958306,-500.0,0.00021095,2]
[330378053,1719337958316,-1523.16,0.00021095,2]
[330378054,1719337958326,-531.38,0.00021095,2]
[330378055,1719337958336,-761.88,0.00021095,2]
[330378056,1719337958346,-500.0,0.00021095,2]
[330378057,1719337958356,-983.79,0.00021095,2]
[330378058,1719337958366,-1492.67,0.00021095,2]
[330378059,1719337958375,-638.84,0.00021095,2]
[330378060,1719337958387,-1515.14,0.00021095,2]
[330378061,1719337958404,-1556.79,0.00021095,2]
[330378062,1719337958414,-785.12,0.00021095,2]
[330378063,1719337958424,-617.17,0.00021095,2]
[330378064,1719337958433,-865.89,0.00021095,2]
[330378065,1719337958443,-1076.26,0.00021095,2]
[330378066,1719337958452,-500.0,0.00021095,2]
[330378067,1719337958462,-554.99,0.00021095,2]
[330378068,1719337958471,-1752.72,0.00021095,2]
[330378069,1719337958480,-500.0,0.00021095,2]
[330378070,1719337958490,-1673.1,0.00021095,2]
[330378071,1719337958500,-500.0,0.00021095,2]
[330378072,1719337958510,-500.0,0.00021095,2]
[330378073,1719337958519,-1196.42,0.00021095,2]
[330378074,1719337958528,-500.0,0.00021095,2]
[330378075,1719337958538,-546.0,0.00021095,2]
[330378076,1719337958547,-500.0,0.00021095,2]
[330378077,1719337958557,-500.0,0.00021095,2]
[330378078,1719337958566,-1230.45,0.00021095,2]
[330378079,1719337958575,-1638.27,0.00021095,2]
[330378080,1719337958585,-506.89971943,0.00021095,2]
[330378081,1719337958594,-505.07087349,0.00021095,2]
[330378082,1719337958604,-721.81,0.00021095,2]
[330378083,1719337958613,-500.0,0.00021095,2]
[330378084,1719337958622,-916.29,0.00021095,2]
[330378085,1719337958631,-1110.71,0.00021095,2]
[330378086,1719337958642,-1305.49,0.00021095,2]
[330378087,1719337958651,-813.41,0.00021095,2]
[330378088,1719337958660,-543.51223902,0.00021095,2]
[330378089,1719337958669,-500.0,0.00021095,2]
[330378090,1719337958678,-505.50959249,0.00021095,2]
[330378091,1719337958687,-738.2,0.00021095,2]
[330378092,1719337958697,-629.35,0.00021095,2]
[330378093,1719337958707,-500.0,0.00021095,2]
[330378094,1719337958716,-2096.31,0.00021095,2]
[330378095,1719337958726,-2936.53,0.00021095,2]
[330378096,1719337958736,-500.0,0.00021095,2]
[330378097,1719337958745,-500.0,0.00021095,2]
[330378098,1719337958754,-500.0,0.00021095,2]
[330378099,1719337958764,-500.0,0.00021095,2]
[330378100,1719337958773,-500.0,0.00021095,2]
[330378101,1719337958783,-500.0,0.00021095,2]
[330378102,1719337958792,-717.21,0.00021095,2]
[330378103,1719337958802,-759.42,0.00021095,2]
[330378104,1719337958811,-524.13,0.00021095,2]
[330378105,1719337958820,-598.1,0.00021095,2]
[330378106,1719337958830,-589.92,0.00021095,2]
[330378107,1719337958839,-500.0,0.00021095,2]
[330378108,1719337958849,-971.03,0.00021095,2]
[330378109,1719337958858,-675.22,0.00021095,2]
[330378110,1719337958868,-500.0,0.00021095,2]
[330378111,1719337958877,-905.04,0.00021095,2]
[330378112,1719337958887,-669.2,0.00021095,2]
[330378113,1719337958897,-500.0,0.00021095,2]
[330378114,1719337958906,-1247.28,0.00021095,2]
[330378115,1719337958916,-1109.18,0.00021095,2]
[330378116,1719337958925,-500.0,0.00021095,2]
[330378117,1719337958935,-500.0,0.00021095,2]
[330378118,1719337958944,-500.0,0.00021095,2]
[330378119,1719337958953,-500.0,0.00021095,2]
[330378120,1719337958963,-460.23186132,0.00021095,2]
[330378121,1719337958973,-1096.34,0.00021095,2]
[330378122,1719337958982,-1550.19,0.00021095,2]
[330378123,1719337958992,-500.0,0.00021095,2]
[330378124,1719337959002,-500.0,0.00021095,2]
[330378125,1719337959011,-757.11,0.00021095,2]
[330378126,1719337959021,-500.0,0.00021095,2]
[330378127,1719337959030,-1826.94,0.00021095,2]
[330378128,1719337959040,-500.0,0.00021095,2]
[330378129,1719337959050,-773.72,0.00021095,2]
[330378130,1719337959059,-500.0,0.00021095,2]
[330378131,1719337959069,-1728.25,0.00021095,2]
[330378132,1719337959078,-973.7,0.00021095,2]
[330378133,1719337959088,-773.97,0.00021095,2]
[330378134,1719337959097,-1154.02,0.00021095,2]
[330378135,1719337959107,-1784.58,0.00021095,2]
[330378136,1719337959116,-658.68,0.00021095,2]
[330378137,1719337959126,-525.47,0.00021095,2]
[330378138,1719337959135,-500.0,0.00021095,2]
[330378139,1719337959145,-894.86,0.00021095,2]
[330378140,1719337959155,-1106.26,0.00021095,2]
[330378141,1719337959165,-556.82,0.00021095,2]
[330378142,1719337959178,-1088.59,0.00021095,2]
[330378143,1719337959188,-500.0,0.00021095,2]
[330378144,1719337959197,-500.0,0.00021095,2]
[330378145,1719337959207,-1061.87,0.00021095,2]
[330378146,1719337959216,-1519.41,0.00021095,2]
[330378147,1719337959226,-1886.29,0.00021095,2]
[330378148,1719337959235,-671.23,0.00021095,2]
[330378149,1719337959247,-842.01,0.00021095,2]
[330378150,1719337959256,-500.0,0.00021095,2]
[330378151,1719337959266,-500.0,0.00021095,2]
[330378152,1719337959276,-848.32,0.00021095,2]
[330378153,1719337959285,-500.0,0.00021095,2]
[330378154,1719337959295,-571.84,0.00021095,2]
[330378155,1719337959304,-547.07,0.00021095,2]
[330378156,1719337959313,-1275.37,0.00021095,2]
[330378157,1719337959323,-708.32,0.00021095,2]
[330378158,1719337959333,-500.0,0.00021095,2]
[330378159,1719337959344,-545.35,0.00021095,2]
[330378160,1719337959353,-500.0,0.00021095,2]
[330378161,1719337959363,-1199.18,0.00021095,2]
[330378162,1719337959372,-500.0,0.00021095,2]
[330378163,1719337959383,-2554.0,0.00021095,2]
[330378164,1719337959393,-500.0,0.00021095,2]
[330378165,1719337959403,-519.8861702,0.00021095,2]
[330378166,1719337959413,-555.48046726,0.00021095,2]
[330378167,1719337959422,-896.63,0.00021095,2]
[330378168,1719337959431,-1510.6,0.00021095,2]
[330378169,1719337959440,-899.64,0.00021095,2]
[330378170,1719337959450,-500.0,0.00021095,2]
[330378171,1719337959459,-678.52,0.00021095,2]
[330378172,1719337959468,-2297.51,0.00021095,2]
[330378173,1719337959478,-500.0,0.00021095,2]
[330378174,1719337959487,-617.17734315,0.00021095,2]
[330378175,1719337959497,-500.0,0.00021095,2]
[330378176,1719337959506,-500.0,0.00021095,2]
[330378177,1719337959516,-706.8,0.00021095,2]
[330378178,1719337959525,-500.0,0.00021095,2]
[330378179,1719337959534,-500.0,0.00021095,2]
[330378180,1719337959544,-500.0,0.00021095,2]
[330378181,1719337959553,-2864.14,0.00021095,2]
[330378182,1719337959563,-500.0,0.00021095,2]
[330378183,1719337959572,-500.0,0.00021095,2]
[330378184,1719337959582,-767.35,0.00021095,2]
[330378185,1719337959591,-500.0,0.00021095,2]
[330378186,1719337959601,-1219.8,0.00021095,2]
[330378187,1719337959610,-817.0,0.00021095,2]
[330378188,1719337959718,-602.68,0.00021095,2]
[330378189,1719337959728,-500.0,0.00021095,2]
[330378190,1719337959738,-750.73,0.00021095,2]
[330378191,1719337959747,-983.23,0.00021095,2]
[330378192,1719337959756,-2190.09,0.00021095,2]
[330378193,1719337959766,-1053.59,0.00021095,2]
[330378194,1719337959775,-500.0,0.00021095,2]
[330378195,1719337959784,-1755.84,0.00021095,2]
[330378196,1719337959793,-502.66,0.00021095,2]
[330378197,1719337959802,-811.39,0.00021095,2]
[330378198,1719337959811,-500.0,0.00021095,2]
[330378199,1719337959820,-1075.29,0.00021095,2]
[330378200,1719337959830,-1534.29,0.00021095,2]
[330378201,1719337959838,-500.0,0.00021095,2]
[330378202,1719337959847,-500.0,0.00021095,2]
[330378203,1719337959856,-1408.46,0.00021095,2]
[330378204,1719337959865,-545.9,0.00021095,2]
[330378205,1719337959874,-721.67,0.00021095,2]
[330378206,1719337959883,-881.26,0.00021095,2]
[330378207,1719337959893,-522.14400744,0.00021095,2]
[330378208,1719337959902,-1154.57,0.00021095,2]
[330378209,1719337959911,-1299.57,0.00021095,2]
[330378210,1719337959920,-500.0,0.00021095,2]
[330378211,1719337959929,-561.35,0.00021095,2]
[330378212,1719337959938,-764.04,0.00021095,2]
[330378213,1719337959948,-201.73628322,0.00021095,2]
[330378214,1719337959957,-2576.08,0.00021095,2]
[330378215,1719337959966,-500.0,0.00021095,2]
[330378216,1719337959975,-500.0,0.00021095,2]
[330378217,1719337959984,-500.0,0.00021095,2]
[330378218,1719337959993,-500.0,0.00021095,2]
[330378219,1719337960003,-1230.16,0.00021095,2]
[330378220,1719337960012,-500.0,0.00021095,2]
[330378221,1719337960021,-500.0,0.00021095,2]
[330378222,1719337960030,-1956.39,0.00021095,2]
[330378223,1719337960039,-654.42,0.00021095,2]
[330378224,1719337960048,-947.68,0.00021095,2]
[330378225,1719337960057,-2524.99,0.00021095,2]
[330378226,1719337960066,-947.4,0.00021095,2]
[330378227,1719337960076,-1606.65,0.00021095,2]
[330378228,1719337960085,-500.0,0.00021095,2]
[330378229,1719337960094,-500.0,0.00021095,2]
[330378230,1719337960104,-1554.23,0.00021095,2]
[330378231,1719337960113,-754.05,0.00021095,2]
[330378232,1719337960123,-526.12,0.00021095,2]
[330378233,1719337960132,-553.36,0.00021095,2]
[330378234,1719337960142,-500.0,0.00021095,2]
[330378235,1719337960151,-500.0,0.00021095,2]
[330378236,1719337960160,-500.0,0.00021095,2]
[330378237,1719337960173,-500.0,0.00021095,2]
[330378238,1719337960183,-500.0,0.00021095,2]
[330378239,1719337960193,-1472.44,0.00021095,2]
[330378240,1719337960203,-2884.08,0.00021095,2]
[330378241,1719337960213,-852.6,0.00021095,2]
[330378242,1719337960222,-181.95102618,0.00021095,2]
[330378243,1719337960231,-764.29,0.00021095,2]
[330378244,1719337960240,-1169.5,0.00021095,2]
[330378245,1719337960252,-500.0,0.00021095,2]
[330378246,1719337960261,-1362.64,0.00021095,2]
[330378247,1719337960270,-500.0,0.00021095,2]
[330378248,1719337960280,-581.63,0.00021095,2]
[330378249,1719337960289,-500.0,0.00021095,2]
[330378250,1719337960298,-686.07,0.00021095,2]
[330378251,1719337960308,-508.41,0.00021095,2]
[330378252,1719337960317,-500.0,0.00021095,2]
[330378253,1719337960326,-666.55,0.00021095,2]
[330378254,1719337960335,-753.97,0.00021095,2]
[330378255,1719337960345,-500.0,0.00021095,2]
[330378256,1719337960354,-666.4,0.00021095,2]
[330378257,1719337960364,-493.23870054,0.00021095,2]
[330378258,1719337960373,-500.0,0.00021095,2]
[330378259,1719337960383,-3770.43,0.00021095,2]
[330378260,1719337960393,-806.51,0.00021095,2]
[330378261,1719337960402,-1414.23,0.00021095,2]
[330378262,1719337960412,-836.39,0.00021095,2]
[330378263,1719337960422,-8800.46,0.00021095,2]
[330378264,1719337960432,-2037.79,0.00021095,2]
[330378265,1719337960441,-735.13,0.00021095,2]
[330378266,1719337960451,-500.0,0.00021095,2]
[330378267,1719337960460,-1917.68,0.00021095,2]
[330378268,1719337960469,-500.0,0.00021095,2]
[330378269,1719337960478,-500.0,0.00021095,2]
[330378270,1719337960488,-530.4723435,0.00021095,2]
[330378271,1719337960498,-879.5,0.00021095,2]
[330378272,1719337960508,-500.0,0.00021095,2]